Workbook

Sheet Topics
A1: Topic | B1: Sheet Link
A2: Slope and Intercept | B2: =A2 -> Slope and Intercept
B3: S I (2)

Sheet Detailed Topics
A1: Video62: | B1: Excel 2013 Statistical Analysis #62: Calculate Slope and Intercept for Regression Line
A2: Number | B2: Topic In Video and minute mark in Video. | C2: Time In Video | R2: Text
A3: =ROWS(A3:A$3) -> 1 | B3: =TRIM(REPLACE(R3,1,SEARCH(")",R3)+1,"")) -> Discussion of Slope and y-intercept formulas | C3: =TRIM(LEFT(R3,SEARCH(")",R3))) -> (00:09) | R3: (00:09) Discussion of Slope and y-intercept formulas
A4: =ROWS(A$3:A4) -> 2 | B4: =TRIM(REPLACE(R4,1,SEARCH(")",R4)+1,"")) -> X Y Scatter Chart / Plot | C4: =TRIM(LEFT(R4,SEARCH(")",R4))) -> (03:30) | R4: (03:30) X Y Scatter Chart / Plot
A5: =ROWS(A$3:A5) -> 3 | B5: Calculate Slope and Intercept | C5: (05:00) | R5: (05:00) Calculate Slope and Intercept
A6: =ROWS(A$3:A6) -> 4 | B6: Use equation to predict | C6: (09:55) | R6: (09:55) Use equation to predict
A7: =ROWS(A$3:A7) -> 5 | B7: Example 2 for calculating Slope and Intercept | C7: (10:48) | R7: (10:48) Example 2 for calculating Slope and Intercept

Sheet Slope Intercept
B1: Xbar | C1: Ybar | D1: Sample Size = n | M1: Xbar | N1: = | O1: Sample Mean of x-values | P1: "Xbar"
A2: Sample Mean | M2: xi | N2: = | O2: Particular X Value | P2: "x sub i"
B3: Sx | C3: Sy | M3: Ybar | N3: = | O3: Sample Mean of y-values | P3: "Ybar"
A4: Sample SD | M4: yi | N4: = | O4: Particular Y Value | P4: "y sub i"
B5: Ad $ Spent per Week and Weekly Sales | M5: sxy | N5: = | O5: Sample Covariance | P5: "s sub xy"
B6: X Ad Dollars Spent per Week | C6: Y Weekly Sales | D6: (X-Xbar)*(Y-Ybar) | E6: (X-Xbar)^2 | M6: n | N6: = | O6: count of records or observations for Sample | P6: "n"
B7: 14000 | C7: 97000 | M7: sx | N7: = | O7: Sample Standard Deviation of X Values | P7: "s sub x"
B8: 27000 | C8: 185000 | M8: sy | N8: = | O8: Sample Standard Deviation of Y Values | P8: "s sub y"
B9: 39900 | C9: 260000
B10: 17000 | C10: 143000
B11: 34000 | C11: 270000
B12: 43000 | C12: 398000
B14: Coefficient of Correlation = r = | F14: Strength and Direction
B15: Coefficient of Correlation = r =
B16: Coefficient of Determination = r^2 = | F16: "Goodness of fit for our line" | J16: How much of the variation in y can be explained by the variation in x (not causation)
B17: Coefficient of Determination = r^2 =
A20: For every one unit of x, how much does y move | D20: Slope = m = b1 =
D21: Slope = m = b1 =
A22: The value of the equation when x = 0 | D22: Intercept = b = b0 =
D23: Intercept = b = b0 =
D25: x | E25: 29000
D26: ="F("&E25&") =" -> F(29000) = | F26: =IF(E23<>"","y = "&ROUND(SLOPE(C7:C12,B7:B12),2)&"*X + "&ROUND(INTERCEPT(C7:C12,B7:B12),2),"") -> 
D28: SD for Xbar
A33: Data Points for Xbar and Ybar Lines on Chart:
A35: Xbar | B35: Y
A36: =AVERAGE($B$7:$B$12) -> 29150 | B36: =MIN(C7:C12) -> 97000
A37: =AVERAGE($B$7:$B$12) -> 29150 | B37: =MAX(C7:C12) -> 398000
A39: X | B39: Ybar
A40: =MIN(B7:B12) -> 14000 | B40: =AVERAGE($C$7:$C$12) -> 225500
A41: =MAX(B7:B12) -> 43000 | B41: 225500

Sheet Slope Intercept (an)
B1: Xbar | C1: Ybar | D1: Sample Size = n | M1: Xbar | N1: = | O1: Sample Mean of x-values | P1: "Xbar"
A2: Sample Mean | B2: =AVERAGE(B7:B12) -> 29150 | C2: =AVERAGE(C7:C12) -> 225500 | D2: =COUNT(B7:B12) -> 6 | M2: xi | N2: = | O2: Particular X Value | P2: "x sub i"
B3: Sx | C3: Sy | M3: Ybar | N3: = | O3: Sample Mean of y-values | P3: "Ybar"
A4: Sample SD | B4: =_xlfn.STDEV.S(B7:B12) -> 11938.80228 | C4: =_xlfn.STDEV.S(C7:C12) -> 107596.933 | M4: yi | N4: = | O4: Particular Y Value | P4: "y sub i"
B5: Ad $ Spent per Week and Weekly Sales | M5: sxy | N5: = | O5: Sample Covariance | P5: "s sub xy"
B6: X Ad Dollars Spent per Week | C6: Y Weekly Sales | D6: (X-Xbar)*(Y-Ybar) | E6: (X-Xbar)^2 | M6: n | N6: = | O6: count of records or observations for Sample | P6: "n"
B7: 14000 | C7: 97000 | D7: =(B7-$B$2)*(C7-$C$2) -> 1946775000 | E7: =(B7-$B$2)^2 -> 229522500 | M7: sx | N7: = | O7: Sample Standard Deviation of X Values | P7: "s sub x"
B8: 27000 | C8: 185000 | D8: =(B8-$B$2)*(C8-$C$2) -> 87075000 | E8: =(B8-$B$2)^2 -> 4622500 | M8: sy | N8: = | O8: Sample Standard Deviation of Y Values | P8: "s sub y"
B9: 39900 | C9: 260000 | D9: 370875000 | E9: 115562500
B10: 17000 | C10: 143000 | D10: 1002375000 | E10: 147622500
B11: 34000 | C11: 270000 | D11: 215825000 | E11: 23522500
B12: 43000 | C12: 398000 | D12: 2389125000 | E12: 191822500
D13: =SUM(D7:D12) -> 6012050000 | E13: =SUM(E7:E12) -> 712675000
B14: Coefficient of Correlation = r = | D14: =D13/(D2-1)/PRODUCT(B4:C4) -> 0.9360346531 | F14: Strength and Direction
B15: Coefficient of Correlation = r = | D15: =PEARSON(C7:C12,B7:B12) -> 0.9360346531
B16: Coefficient of Determination = r^2 = | D16: =D15^2 -> 0.8761608717 | F16: "Goodness of fit for our line" | J16: How much of the variation in y can be explained by the variation in x (not causation)
B17: Coefficient of Determination = r^2 = | D17: =RSQ(C7:C12,B7:B12) -> 0.8761608717
A20: For every one unit of x, how much does y move | D20: Slope = m = b1 = | E20: =D13/E13 -> 8.435892939
D21: Slope = m = b1 = | E21: =SLOPE(C7:C12,B7:B12) -> 8.435892939
A22: The value of the equation when x = 0 | D22: Intercept = b = b0 = | E22: =C2-E20*B2 -> -20406.27916
D23: Intercept = b = b0 = | E23: =INTERCEPT(C7:C12,B7:B12) -> -20406.27916
D25: x | E25: 29000
D26: ="F("&E25&") =" -> F(29000) = | E26: =E20*E25+E23 -> 224234.6161

Sheet Slope Intercept (an2)
B1: Xbar | C1: Ybar | D1: Sample Size = n | M1: Xbar | N1: = | O1: Sample Mean of x-values | P1: "Xbar"
A2: Sample Mean | B2: =AVERAGE(B7:B12) -> 29150 | C2: =AVERAGE(C7:C12) -> 225500 | D2: =COUNT(B7:B12) -> 6 | M2: xi | N2: = | O2: Particular X Value | P2: "x sub i"
B3: Sx | C3: Sy | M3: Ybar | N3: = | O3: Sample Mean of y-values | P3: "Ybar"
A4: Sample SD | B4: =_xlfn.STDEV.S(B7:B12) -> 11938.80228 | C4: =_xlfn.STDEV.S(C7:C12) -> 107596.933 | M4: yi | N4: = | O4: Particular Y Value | P4: "y sub i"
B5: Ad $ Spent per Week and Weekly Sales | M5: sxy | N5: = | O5: Sample Covariance | P5: "s sub xy"
B6: X Ad Dollars Spent per Week | C6: Y Weekly Sales | D6: (X-Xbar)*(Y-Ybar) | E6: (X-Xbar)^2 | M6: n | N6: = | O6: count of records or observations for Sample | P6: "n"
B7: 14000 | C7: 97000 | D7: =(B7-$B$2)*(C7-$C$2) -> 1946775000 | E7: =(B7-$B$2)^2 -> 229522500 | M7: sx | N7: = | O7: Sample Standard Deviation of X Values | P7: "s sub x"
B8: 27000 | C8: 185000 | D8: =(B8-$B$2)*(C8-$C$2) -> 87075000 | E8: =(B8-$B$2)^2 -> 4622500 | M8: sy | N8: = | O8: Sample Standard Deviation of Y Values | P8: "s sub y"
B9: 39900 | C9: 260000 | D9: 370875000 | E9: 115562500
B10: 17000 | C10: 143000 | D10: 1002375000 | E10: 147622500
B11: 34000 | C11: 270000 | D11: 215825000 | E11: 23522500
B12: 43000 | C12: 398000 | D12: 2389125000 | E12: 191822500
D13: =SUM(D7:D12) -> 6012050000 | E13: =SUM(E7:E12) -> 712675000
B14: Coefficient of Correlation = r = | D14: =D13/(D2-1)/PRODUCT(B4:C4) -> 0.9360346531 | F14: Strength and Direction
B15: Coefficient of Correlation = r = | D15: =PEARSON(C7:C12,B7:B12) -> 0.9360346531
B16: Coefficient of Determination = r^2 = | F16: "Goodness of fit for our line" | J16: How much of the variation in y can be explained by the variation in x (not causation)
B17: Coefficient of Determination = r^2 =
A20: For every one unit of x, how much does y move | D20: Slope = m = b1 = | E20: =D13/E13 -> 8.435892939
D21: Slope = m = b1 = | E21: =SLOPE(C7:C12,B7:B12) -> 8.435892939
A22: The value of the equation when x = 0 | D22: Intercept = b = b0 = | E22: =C2-E20*B2 -> -20406.27916
D23: Intercept = b = b0 = | E23: =INTERCEPT(C7:C12,B7:B12) -> -20406.27916
D25: x | E25: 29000
D26: ="F("&E25&") =" -> F(29000) = | E26: =E20*E25+E23 -> 224234.6161 | F26: =IF(E23<>"","y = "&ROUND(SLOPE(C7:C12,B7:B12),2)&"*X + "&ROUND(INTERCEPT(C7:C12,B7:B12),2),"") -> y = 8.44*X + -20406.28
D28: SD for Xbar | E28: =SQRT(E13/(D2-1)) -> 11938.80228
A33: Data Points for Xbar and Ybar Lines on Chart:
A35: Xbar | B35: Y
A36: =AVERAGE($B$7:$B$12) -> 29150 | B36: =MIN(C7:C12) -> 97000
A37: =AVERAGE($B$7:$B$12) -> 29150 | B37: =MAX(C7:C12) -> 398000
A39: X | B39: Ybar
A40: =MIN(B7:B12) -> 14000 | B40: =AVERAGE($C$7:$C$12) -> 225500
A41: =MAX(B7:B12) -> 43000 | B41: 225500

Sheet Goodness of Fit
B1: Xbar | C1: Ybar | D1: Sample Size = n | G1: Residual (instead of deviation) = y - predicted y | M1: Xbar | N1: = | O1: Sample Mean of x-values | P1: "Xbar"
A2: Sample Mean | B2: =AVERAGE(B7:B12) -> 29150 | C2: =AVERAGE(C7:C12) -> 225500 | D2: =COUNT(B7:B12) -> 6 | G2: SSE = Sum of Squares Due to Error = How well observations cluster around predicted line | M2: xi | N2: = | O2: Particular X Value | P2: "x sub i"
B3: Sx | C3: Sy | G3: SST = Total Sum of Squares = How well observations cluster around Ybar line | M3: Ybar | N3: = | O3: Sample Mean of y-values | P3: "Ybar"
A4: Sample SD | B4: =_xlfn.STDEV.S(B7:B12) -> 11938.80228 | C4: =_xlfn.STDEV.S(C7:C12) -> 107596.933 | G4: SSR = Sum of Squares Due to Regression | M4: yi | N4: = | O4: Particular Y Value | P4: "y sub i"
B5: Ad $ Spent per Week and Weekly Sales | G5: SST = SSR + SSE. SSR = SST - SSE | M5: sxy | N5: = | O5: Sample Covariance | P5: "s sub xy"
B6: X Ad Dollars Spent per Week | C6: Y Weekly Sales | D6: (X-Xbar)*(Y-Ybar) | E6: (X-Xbar)^2 | G6: f(x) = Predicted y | H6: (y-predicted y)^2 residual^2 | I6: (y-Ybar)^2 | J6: SSR amount | M6: n | N6: = | O6: count of records or observations for Sample | P6: "n"
B7: 14000 | C7: 97000 | D7: =(B7-$B$2)*(C7-$C$2) -> 1946775000 | E7: =(B7-$B$2)^2 -> 229522500 | G7: =B7*$E$21+$E$23 -> 97696.22198 | H7: =(C7-G7)^2 -> 484725.0462 | I7: =(C7-$C$2)^2 -> 16512250000 | J7: =($C$2-G7)^2 -> 1.633380568e+10 | M7: sx | N7: = | O7: Sample Standard Deviation of X Values | P7: "s sub x"
B8: 27000 | C8: 185000 | D8: =(B8-$B$2)*(C8-$C$2) -> 87075000 | E8: =(B8-$B$2)^2 -> 4622500 | G8: 207362.8302 | H8: 500096173.8 | I8: 1640250000 | J8: =($C$2-G8)^2 -> 328956929 | M8: sy | N8: = | O8: Sample Standard Deviation of Y Values | P8: "s sub y"
B9: 39900 | C9: 260000 | D9: 370875000 | E9: 115562500 | G9: 316185.8491 | H9: 3156849638 | I9: 1190250000 | J9: 8223923225
B10: 17000 | C10: 143000 | D10: 1002375000 | E10: 147622500 | G10: 123003.9008 | H10: 399843983.4 | I10: 6806250000 | J10: 1.050545035e+10
B11: 34000 | C11: 270000 | D11: 215825000 | E11: 23522500 | G11: 266414.0808 | H11: 12858816.85 | I11: 1980250000 | J11: 1673962004
B12: 43000 | C12: 398000 | D12: 2389125000 | E12: 191822500 | G12: 342337.1172 | H12: 3098356522 | I12: 29756250000 | J12: 1.365091196e+10
D13: =SUM(D7:D12) -> 6012050000 | E13: =SUM(E7:E12) -> 712675000 | G13: SSE | H13: =SUM(H7:H12) -> 7168489859 | J13: =SUM(J7:J12) -> 5.071701014e+10
B14: Coefficient of Correlation = r = | D14: =D13/(D2-1)/PRODUCT(B4:C4) -> 0.9360346531 | E14: Strength and Direction | H14: SST | I14: =SUM(I7:I12) -> 57885500000
B15: Coefficient of Correlation = r = | D15: =PEARSON(C7:C12,B7:B12) -> 0.9360346531 | H15: SSR = SST - SSE | I15: =I14-H13 -> 5.071701014e+10
B16: Coefficient of Determination = r^2 = | D16: =D15^2 -> 0.8761608717 | E16: "Goodness of fit for our line" | H16: Coefficient of Determination = r^2 = SSR/SST = | J16: =I15/I14 -> 0.8761608717
B17: Coefficient of Determination = r^2 = | D17: =RSQ(C7:C12,B7:B12) -> 0.8761608717 | E17: How much of the variation in y can be explained by the variation in x (not causation)
A20: For every one unit of x, how much does y move | D20: Slope = m = b1 = | E20: =D13/E13 -> 8.435892939
D21: Slope = m = b1 = | E21: =SLOPE(C7:C12,B7:B12) -> 8.435892939
A22: The value of the equation when x = 0 | D22: Intercept = b = b0 = | E22: =C2-E20*B2 -> -20406.27916
D23: Intercept = b = b0 = | E23: =INTERCEPT(C7:C12,B7:B12) -> -20406.27916
D25: x | E25: 29000
D26: ="F("&E25&") =" -> F(29000) = | E26: =E20*E25+E23 -> 224234.6161
A31: x | B31: Ybar
A32: =MIN(B7:B12) -> 14000 | B32: =$C$2 -> 225500
A33: =MAX(B7:B12) -> 43000 | B33: =$C$2 -> 225500

Sheet S I (2)
A1: Used Toyota Camry Data | D1: Coefficient of Correlation = r = | I1: Strength and Direction
A2: Miles on Camry (x) | B2: Price for Used Camry (y) | D2: Coefficient of Determination = r^2 = | I2: "Goodness of fit for our line"
A3: 22820 | B3: 14053 | D3: Slope = m = b1 = | I3: For every one unit of x, how much does y move
A4: 28339 | B4: 13766 | D4: Intercept = b = b0 = | I4: The value of the equation when x = 0
A5: 38341 | B5: 14697 | F5: x | G5: 43520
A6: 45308 | B6: 19090 | F6: ="F("&G5&") =" -> F(43520) = | I6: =IF(G4<>"","y = "&ROUND(SLOPE(B3:B21,A3:A21),4)&"*X + "&ROUND(INTERCEPT(B3:B21,A3:A21),2),"") -> 
A7: 65752 | B7: 14157
A8: 75982 | B8: 11111
A9: 75268 | B9: 13138
A10: 86385 | B10: 12381
A11: 92549 | B11: 10458
A12: 100524 | B12: 7313
A13: 111416 | B13: 6106
A14: 25038 | B14: 11667
A15: 59686 | B15: 11298
A16: 67392 | B16: 14010
A17: 69929 | B17: 13523
A18: 88167 | B18: 10905
A19: 12238 | B19: 17683
A20: 62116 | B20: 11900
A21: 111693 | B21: 6748

Sheet S I (2an)
A1: Used Toyota Camry Data | D1: Coefficient of Correlation = r = | G1: =PEARSON(B3:B21,A3:A21) -> -0.7690639861 | I1: Strength and Direction
A2: Miles on Camry (x) | B2: Price for Used Camry (y) | D2: Coefficient of Determination = r^2 = | G2: =G1^2 -> 0.5914594147 | I2: "Goodness of fit for our line"
A3: 22820 | B3: 14053 | D3: Slope = m = b1 = | G3: =SLOPE(B3:B21,A3:A21) -> -0.08469194282 | I3: For every one unit of x, how much does y move
A4: 28339 | B4: 13766 | D4: Intercept = b = b0 = | G4: =INTERCEPT(B3:B21,A3:A21) -> 17838.55209 | I4: The value of the equation when x = 0
A5: 38341 | B5: 14697 | F5: x | G5: 43520
A6: 45308 | B6: 19090 | F6: ="F("&G5&") =" -> F(43520) = | G6: =G3*G5+G4 -> 14152.75874 | I6: =IF(G4<>"","y = "&ROUND(SLOPE(B3:B21,A3:A21),4)&"*X + "&ROUND(INTERCEPT(B3:B21,A3:A21),2),"") -> y = -0.0847*X + 17838.55
A7: 65752 | B7: 14157
A8: 75982 | B8: 11111
A9: 75268 | B9: 13138
A10: 86385 | B10: 12381
A11: 92549 | B11: 10458
A12: 100524 | B12: 7313
A13: 111416 | B13: 6106
A14: 25038 | B14: 11667
A15: 59686 | B15: 11298
A16: 67392 | B16: 14010
A17: 69929 | B17: 13523
A18: 88167 | B18: 10905
A19: 12238 | B19: 17683
A20: 62116 | B20: 11900
A21: 111693 | B21: 6748

Sheet Data & PT
A1: Original Question: Should Advising be Mandatory? | AH1: Formulas | AI1: Formulas | AJ1: Formulas
A2: Made up data below: | AH2: =INDEX($AH$5:$AH$8,CHOOSE(RANDBETWEEN(1,4),4,RANDBETWEEN(1,4),RANDBETWEEN(2,4),RANDBETWEEN(3,4))) -> No | AI2: =INDEX($AI$5:$AI$11,RANDBETWEEN(1,7)) -> Humanities | AJ2: =INDEX($AJ$5:$AJ$13,RANDBETWEEN(1,9)) -> One Year Contract
A4: Response | B4: Division | C4: Employment Status | AH4: data | AI4: data | AJ4: data
A5: Yes, but I need more information | B5: Buisness | C5: Full Time | AH5: No | AI5: Buisness | AJ5: Full Time
A6: Yes, but I need more information | B6: Science | C6: Part Time | AH6: Not Sure | AI6: Science | AJ6: Part Time
A7: Yes, but I need more information | B7: Humanities | C7: Full Time | AH7: Yes | AI7: Buisness | AJ7: Full Time
A8: Not Sure | B8: Buisness | C8: Full Time | AH8: Yes, but I need more information | AI8: Science | AJ8: Full Time
A9: Yes | B9: Humanities | C9: Part Time | AI9: Buisness | AJ9: Part Time
A10: Yes | B10: Humanities | C10: Full Time | AI10: Humanities | AJ10: Part Time
A11: Yes | B11: Humanities | C11: Full Time | AI11: Humanities | AJ11: Full Time
A12: No | B12: Buisness | C12: Part Time | AJ12: One Year Contract
A13: Not Sure | B13: Science | C13: Part Time | AJ13: One Year Contract
A14: No | B14: Science | C14: Full Time
A15: Yes | B15: Science | C15: Part Time
A16: Yes | B16: Buisness | C16: One Year Contract
A17: Not Sure | B17: Buisness | C17: Part Time
A18: Yes, but I need more information | B18: Science | C18: One Year Contract
A19: Yes | B19: Humanities | C19: Full Time
A20: Yes, but I need more information | B20: Buisness | C20: Part Time
A21: Yes, but I need more information | B21: Buisness | C21: Full Time
A22: Yes | B22: Science | C22: One Year Contract
A23: No | B23: Buisness | C23: Part Time
A24: Not Sure | B24: Science | C24: Part Time
A25: Yes, but I need more information | B25: Science | C25: One Year Contract
A26: Yes, but I need more information | B26: Humanities | C26: Full Time
A27: Yes, but I need more information | B27: Humanities | C27: Full Time
A28: Yes | B28: Buisness | C28: Full Time
A29: No | B29: Buisness | C29: Full Time
A30: Yes, but I need more information | B30: Science | C30: Full Time
A31: Yes | B31: Science | C31: Full Time
A32: Yes, but I need more information | B32: Humanities | C32: Part Time
A33: Yes | B33: Humanities | C33: Full Time
A34: Yes, but I need more information | B34: Humanities | C34: Full Time
A35: Yes, but I need more information | B35: Science | C35: Part Time
A36: Yes, but I need more information | B36: Buisness | C36: Full Time
A37: Yes | B37: Science | C37: Part Time
A38: Yes | B38: Buisness | C38: Part Time
A39: Yes, but I need more information | B39: Science | C39: One Year Contract
A40: Yes, but I need more information | B40: Science | C40: Full Time
A41: Not Sure | B41: Buisness | C41: Part Time
A42: Not Sure | B42: Buisness | C42: One Year Contract
A43: Yes, but I need more information | B43: Humanities | C43: One Year Contract
A44: Yes | B44: Science | C44: One Year Contract
A45: Yes | B45: Buisness | C45: Full Time
A46: No | B46: Science | C46: Full Time
A47: Yes, but I need more information | B47: Buisness | C47: Full Time
A48: Yes, but I need more information | B48: Buisness | C48: One Year Contract
A49: Yes, but I need more information | B49: Buisness | C49: Full Time
A50: Yes, but I need more information | B50: Humanities | C50: One Year Contract
A51: Not Sure | B51: Buisness | C51: Full Time
A52: Yes | B52: Buisness | C52: Part Time
A53: Yes, but I need more information | B53: Humanities | C53: Part Time
A54: Yes | B54: Science | C54: Part Time
A55: Yes, but I need more information | B55: Buisness | C55: Part Time
A56: Yes, but I need more information | B56: Buisness | C56: Full Time
A57: Yes | B57: Science | C57: One Year Contract
A58: Yes, but I need more information | B58: Science | C58: Part Time
A59: Yes, but I need more information | B59: Buisness | C59: Full Time
A60: Yes, but I need more information | B60: Humanities | C60: One Year Contract
A61: Yes, but I need more information | B61: Buisness | C61: Full Time
A62: Yes, but I need more information | B62: Buisness | C62: One Year Contract
A63: Yes, but I need more information | B63: Buisness | C63: Part Time
A64: Yes, but I need more information | B64: Humanities | C64: One Year Contract
A65: Not Sure | B65: Buisness | C65: Full Time
A66: Yes, but I need more information | B66: Humanities | C66: Full Time
A67: Yes, but I need more information | B67: Buisness | C67: Part Time
A68: Yes | B68: Buisness | C68: Part Time
A69: Yes, but I need more information | B69: Buisness | C69: Part Time
A70: Not Sure | B70: Humanities | C70: Full Time
A71: Yes, but I need more information | B71: Buisness | C71: Part Time
A72: Yes, but I need more information | B72: Buisness | C72: Part Time
A73: Yes | B73: Humanities | C73: Full Time
A74: Yes | B74: Humanities | C74: Full Time
A75: Not Sure | B75: Buisness | C75: Part Time
A76: Yes | B76: Science | C76: Full Time
A77: Yes | B77: Science | C77: One Year Contract
A78: Yes | B78: Buisness | C78: Full Time
A79: Yes, but I need more information | B79: Science | C79: Part Time
A80: Yes | B80: Humanities | C80: Full Time
A81: Not Sure | B81: Science | C81: One Year Contract
A82: Yes, but I need more information | B82: Humanities | C82: Full Time
A83: Yes, but I need more information | B83: Buisness | C83: Part Time
A84: Yes, but I need more information | B84: Science | C84: Full Time
A85: Not Sure | B85: Science | C85: One Year Contract
A86: Yes | B86: Humanities | C86: Part Time
A87: Not Sure | B87: Science | C87: One Year Contract
A88: Yes | B88: Buisness | C88: Full Time
A89: Yes, but I need more information | B89: Science | C89: Full Time
A90: Yes, but I need more information | B90: Science | C90: Full Time
A91: Yes, but I need more information | B91: Humanities | C91: Full Time
A92: Not Sure | B92: Science | C92: One Year Contract
A93: Yes | B93: Buisness | C93: Full Time
A94: Yes, but I need more information | B94: Humanities | C94: One Year Contract
A95: Yes, but I need more information | B95: Buisness | C95: Full Time
A96: Yes | B96: Humanities | C96: Part Time
A97: Yes | B97: Science | C97: Part Time
A98: Not Sure | B98: Humanities | C98: Part Time
A99: Yes, but I need more information | B99: Science | C99: Full Time
A100: Yes, but I need more information | B100: Buisness | C100: Full Time
A101: Yes, but I need more information | B101: Humanities | C101: Part Time
A102: Not Sure | B102: Humanities | C102: Full Time
A103: No | B103: Science | C103: Full Time
A104: Yes, but I need more information | B104: Buisness | C104: Part Time
A105: Yes | B105: Buisness | C105: Part Time
A106: Yes | B106: Humanities | C106: One Year Contract
A107: Yes, but I need more information | B107: Buisness | C107: Part Time
A108: Yes, but I need more information | B108: Buisness | C108: Full Time
A109: Yes | B109: Science | C109: Part Time
A110: Yes, but I need more information | B110: Buisness | C110: One Year Contract
A111: Not Sure | B111: Science | C111: One Year Contract
A112: Yes, but I need more information | B112: Humanities | C112: Part Time
A113: Yes, but I need more information | B113: Humanities | C113: Full Time
A114: Yes, but I need more information | B114: Buisness | C114: Full Time
A115: Not Sure | B115: Buisness | C115: Full Time
A116: Yes, but I need more information | B116: Humanities | C116: One Year Contract
A117: Yes, but I need more information | B117: Humanities | C117: Full Time
A118: Yes, but I need more information | B118: Buisness | C118: One Year Contract
A119: Yes, but I need more information | B119: Buisness | C119: One Year Contract
A120: Yes | B120: Humanities | C120: Full Time
A121: Not Sure | B121: Buisness | C121: Full Time
A122: Yes | B122: Science | C122: Part Time
A123: Yes, but I need more information | B123: Buisness | C123: One Year Contract
A124: Yes, but I need more information | B124: Humanities | C124: Part Time
A125: Yes, but I need more information | B125: Science | C125: Part Time
A126: No | B126: Science | C126: Full Time
A127: Yes, but I need more information | B127: Science | C127: One Year Contract
A128: Yes, but I need more information | B128: Buisness | C128: Part Time
A129: Yes | B129: Science | C129: Part Time
A130: Yes | B130: Buisness | C130: Full Time
A131: Not Sure | B131: Buisness | C131: Part Time
A132: Yes, but I need more information | B132: Science | C132: Part Time
A133: Yes, but I need more information | B133: Buisness | C133: Full Time
A134: Yes, but I need more information | B134: Buisness | C134: Part Time
A135: Yes | B135: Humanities | C135: Full Time
A136: Yes, but I need more information | B136: Buisness | C136: Full Time
A137: Yes, but I need more information | B137: Humanities | C137: Full Time
A138: Yes | B138: Humanities | C138: Full Time
A139: Yes | B139: Humanities | C139: Full Time
A140: Yes, but I need more information | B140: Humanities | C140: Part Time
A141: Yes | B141: Science | C141: Part Time
A142: Yes, but I need more information | B142: Humanities | C142: Part Time
A143: Yes, but I need more information | B143: Buisness | C143: Full Time
A144: Not Sure | B144: Humanities | C144: Full Time
A145: Yes | B145: Buisness | C145: Full Time
A146: Yes, but I need more information | B146: Humanities | C146: Full Time
A147: Yes, but I need more information | B147: Buisness | C147: Full Time
A148: Not Sure | B148: Buisness | C148: Full Time
A149: Yes, but I need more information | B149: Buisness | C149: Part Time
A150: No | B150: Buisness | C150: One Year Contract
A151: Yes | B151: Science | C151: Full Time
A152: Yes, but I need more information | B152: Science | C152: Full Time
A153: Yes | B153: Humanities | C153: One Year Contract
A154: Yes | B154: Buisness | C154: One Year Contract
A155: Yes, but I need more information | B155: Humanities | C155: Part Time
A156: Yes | B156: Buisness | C156: Part Time
A157: Not Sure | B157: Humanities | C157: One Year Contract
A158: Yes, but I need more information | B158: Science | C158: Full Time
A159: Yes, but I need more information | B159: Buisness | C159: Full Time
A160: Yes | B160: Buisness | C160: Part Time
A161: Yes, but I need more information | B161: Buisness | C161: Part Time
A162: Yes | B162: Science | C162: Full Time
A163: No | B163: Science | C163: Part Time
A164: Yes, but I need more information | B164: Science | C164: Full Time
A165: Not Sure | B165: Buisness | C165: Full Time
A166: Yes | B166: Humanities | C166: Part Time
A167: Yes, but I need more information | B167: Humanities | C167: One Year Contract
A168: Yes, but I need more information | B168: Science | C168: One Year Contract
A169: Yes, but I need more information | B169: Buisness | C169: Full Time
A170: Yes, but I need more information | B170: Buisness | C170: Full Time
A171: Not Sure | B171: Science | C171: Full Time
A172: Yes, but I need more information | B172: Science | C172: Part Time
A173: Not Sure | B173: Humanities | C173: Part Time
A174: Yes, but I need more information | B174: Humanities | C174: Part Time
A175: Yes | B175: Humanities | C175: One Year Contract
A176: Yes, but I need more information | B176: Humanities | C176: One Year Contract
A177: Yes, but I need more information | B177: Buisness | C177: Full Time
A178: Not Sure | B178: Science | C178: Part Time
A179: Yes, but I need more information | B179: Buisness | C179: Full Time
A180: Yes, but I need more information | B180: Humanities | C180: Full Time
A181: Yes, but I need more information | B181: Humanities | C181: Full Time
A182: Yes, but I need more information | B182: Science | C182: Full Time
A183: Yes | B183: Buisness | C183: Full Time
A184: Not Sure | B184: Humanities | C184: Full Time
A185: No | B185: Buisness | C185: Part Time
A186: Not Sure | B186: Buisness | C186: One Year Contract
A187: Not Sure | B187: Buisness | C187: Full Time
A188: Yes | B188: Science | C188: Part Time
A189: Yes | B189: Buisness | C189: Part Time
A190: Yes, but I need more information | B190: Humanities | C190: Part Time
A191: Yes, but I need more information | B191: Buisness | C191: Part Time
A192: Yes | B192: Science | C192: One Year Contract
A193: Yes, but I need more information | B193: Science | C193: Full Time
A194: Yes, but I need more information | B194: Humanities | C194: Full Time
A195: Not Sure | B195: Buisness | C195: Full Time
A196: Not Sure | B196: Buisness | C196: Full Time
A197: No | B197: Buisness | C197: Full Time
A198: Yes, but I need more information | B198: Science | C198: Full Time
A199: No | B199: Buisness | C199: Full Time
A200: Yes, but I need more information | B200: Buisness | C200: Part Time
A201: Yes, but I need more information | B201: Science | C201: Part Time
... 14 more rows

Sheet Data & PT (an)
A1: Original Question: Should Advising be Mandatory? | AH1: Formulas | AI1: Formulas | AJ1: Formulas
A2: Made up data below: | AH2: =INDEX($AH$4:$AH$7,CHOOSE(RANDBETWEEN(1,4),4,RANDBETWEEN(1,4),RANDBETWEEN(2,4),RANDBETWEEN(3,4))) -> Yes, but I need more information | AI2: =INDEX($AI$4:$AI$10,RANDBETWEEN(1,7)) -> Humanities | AJ2: =INDEX($AJ$4:$AJ$12,RANDBETWEEN(1,9)) -> One Year Contract
E3: Response | F3: Frequency | G3: Relative Frequency | AH3: data | AI3: data | AJ3: data
A4: Response | B4: Division | C4: Employment Status | E4: No | F4: 3 | G4: 0.06818181818 | AH4: No | AI4: Buisness | AJ4: Full Time
A5: Yes, but I need more information | B5: Buisness | C5: Full Time | E5: Not Sure | F5: 11 | G5: 0.25 | AH5: Not Sure | AI5: Science | AJ5: Part Time
A6: Yes, but I need more information | B6: Science | C6: Part Time | E6: Yes | F6: 8 | G6: 0.1818181818 | AH6: Yes | AI6: Buisness | AJ6: Full Time
A7: Yes, but I need more information | B7: Humanities | C7: Full Time | E7: Yes, but I need more information | F7: 22 | G7: 0.5 | AH7: Yes, but I need more information | AI7: Science | AJ7: Full Time
A8: Not Sure | B8: Buisness | C8: Full Time | E8: Grand Total | F8: 44 | G8: 1 | AI8: Buisness | AJ8: Part Time
A9: Yes | B9: Humanities | C9: Part Time | AI9: Humanities | AJ9: Part Time
A10: Yes | B10: Humanities | C10: Full Time | AI10: Humanities | AJ10: Full Time
A11: Yes | B11: Humanities | C11: Full Time | AJ11: One Year Contract
A12: No | B12: Buisness | C12: Part Time | AJ12: One Year Contract
A13: Not Sure | B13: Science | C13: Part Time
A14: No | B14: Science | C14: Full Time
A15: Yes | B15: Science | C15: Part Time
A16: Yes | B16: Buisness | C16: One Year Contract
A17: Not Sure | B17: Buisness | C17: Part Time
A18: Yes, but I need more information | B18: Science | C18: One Year Contract
A19: Yes | B19: Humanities | C19: Full Time
A20: Yes, but I need more information | B20: Buisness | C20: Part Time
A21: Yes, but I need more information | B21: Buisness | C21: Full Time
A22: Yes | B22: Science | C22: One Year Contract
A23: No | B23: Buisness | C23: Part Time
A24: Not Sure | B24: Science | C24: Part Time
A25: Yes, but I need more information | B25: Science | C25: One Year Contract
A26: Yes, but I need more information | B26: Humanities | C26: Full Time
A27: Yes, but I need more information | B27: Humanities | C27: Full Time
A28: Yes | B28: Buisness | C28: Full Time
A29: No | B29: Buisness | C29: Full Time
A30: Yes, but I need more information | B30: Science | C30: Full Time
A31: Yes | B31: Science | C31: Full Time
A32: Yes, but I need more information | B32: Humanities | C32: Part Time
A33: Yes | B33: Humanities | C33: Full Time
A34: Yes, but I need more information | B34: Humanities | C34: Full Time
A35: Yes, but I need more information | B35: Science | C35: Part Time
A36: Yes, but I need more information | B36: Buisness | C36: Full Time
A37: Yes | B37: Science | C37: Part Time
A38: Yes | B38: Buisness | C38: Part Time
A39: Yes, but I need more information | B39: Science | C39: One Year Contract
A40: Yes, but I need more information | B40: Science | C40: Full Time
A41: Not Sure | B41: Buisness | C41: Part Time
A42: Not Sure | B42: Buisness | C42: One Year Contract
A43: Yes, but I need more information | B43: Humanities | C43: One Year Contract
A44: Yes | B44: Science | C44: One Year Contract
A45: Yes | B45: Buisness | C45: Full Time
A46: No | B46: Science | C46: Full Time
A47: Yes, but I need more information | B47: Buisness | C47: Full Time
A48: Yes, but I need more information | B48: Buisness | C48: One Year Contract
A49: Yes, but I need more information | B49: Buisness | C49: Full Time
A50: Yes, but I need more information | B50: Humanities | C50: One Year Contract
A51: Not Sure | B51: Buisness | C51: Full Time
A52: Yes | B52: Buisness | C52: Part Time
A53: Yes, but I need more information | B53: Humanities | C53: Part Time
A54: Yes | B54: Science | C54: Part Time
A55: Yes, but I need more information | B55: Buisness | C55: Part Time
A56: Yes, but I need more information | B56: Buisness | C56: Full Time
A57: Yes | B57: Science | C57: One Year Contract
A58: Yes, but I need more information | B58: Science | C58: Part Time
A59: Yes, but I need more information | B59: Buisness | C59: Full Time
A60: Yes, but I need more information | B60: Humanities | C60: One Year Contract
A61: Yes, but I need more information | B61: Buisness | C61: Full Time
A62: Yes, but I need more information | B62: Buisness | C62: One Year Contract
A63: Yes, but I need more information | B63: Buisness | C63: Part Time
A64: Yes, but I need more information | B64: Humanities | C64: One Year Contract
A65: Not Sure | B65: Buisness | C65: Full Time
A66: Yes, but I need more information | B66: Humanities | C66: Full Time
A67: Yes, but I need more information | B67: Buisness | C67: Part Time
A68: Yes | B68: Buisness | C68: Part Time
A69: Yes, but I need more information | B69: Buisness | C69: Part Time
A70: Not Sure | B70: Humanities | C70: Full Time
A71: Yes, but I need more information | B71: Buisness | C71: Part Time
A72: Yes, but I need more information | B72: Buisness | C72: Part Time
A73: Yes | B73: Humanities | C73: Full Time
A74: Yes | B74: Humanities | C74: Full Time
A75: Not Sure | B75: Buisness | C75: Part Time
A76: Yes | B76: Science | C76: Full Time
A77: Yes | B77: Science | C77: One Year Contract
A78: Yes | B78: Buisness | C78: Full Time
A79: Yes, but I need more information | B79: Science | C79: Part Time
A80: Yes | B80: Humanities | C80: Full Time
A81: Not Sure | B81: Science | C81: One Year Contract
A82: Yes, but I need more information | B82: Humanities | C82: Full Time
A83: Yes, but I need more information | B83: Buisness | C83: Part Time
A84: Yes, but I need more information | B84: Science | C84: Full Time
A85: Not Sure | B85: Science | C85: One Year Contract
A86: Yes | B86: Humanities | C86: Part Time
A87: Not Sure | B87: Science | C87: One Year Contract
A88: Yes | B88: Buisness | C88: Full Time
A89: Yes, but I need more information | B89: Science | C89: Full Time
A90: Yes, but I need more information | B90: Science | C90: Full Time
A91: Yes, but I need more information | B91: Humanities | C91: Full Time
A92: Not Sure | B92: Science | C92: One Year Contract
A93: Yes | B93: Buisness | C93: Full Time
A94: Yes, but I need more information | B94: Humanities | C94: One Year Contract
A95: Yes, but I need more information | B95: Buisness | C95: Full Time
A96: Yes | B96: Humanities | C96: Part Time
A97: Yes | B97: Science | C97: Part Time
A98: Not Sure | B98: Humanities | C98: Part Time
A99: Yes, but I need more information | B99: Science | C99: Full Time
A100: Yes, but I need more information | B100: Buisness | C100: Full Time
A101: Yes, but I need more information | B101: Humanities | C101: Part Time
A102: Not Sure | B102: Humanities | C102: Full Time
A103: No | B103: Science | C103: Full Time
A104: Yes, but I need more information | B104: Buisness | C104: Part Time
A105: Yes | B105: Buisness | C105: Part Time
A106: Yes | B106: Humanities | C106: One Year Contract
A107: Yes, but I need more information | B107: Buisness | C107: Part Time
A108: Yes, but I need more information | B108: Buisness | C108: Full Time
A109: Yes | B109: Science | C109: Part Time
A110: Yes, but I need more information | B110: Buisness | C110: One Year Contract
A111: Not Sure | B111: Science | C111: One Year Contract
A112: Yes, but I need more information | B112: Humanities | C112: Part Time
A113: Yes, but I need more information | B113: Humanities | C113: Full Time
A114: Yes, but I need more information | B114: Buisness | C114: Full Time
A115: Not Sure | B115: Buisness | C115: Full Time
A116: Yes, but I need more information | B116: Humanities | C116: One Year Contract
A117: Yes, but I need more information | B117: Humanities | C117: Full Time
A118: Yes, but I need more information | B118: Buisness | C118: One Year Contract
A119: Yes, but I need more information | B119: Buisness | C119: One Year Contract
A120: Yes | B120: Humanities | C120: Full Time
A121: Not Sure | B121: Buisness | C121: Full Time
A122: Yes | B122: Science | C122: Part Time
A123: Yes, but I need more information | B123: Buisness | C123: One Year Contract
A124: Yes, but I need more information | B124: Humanities | C124: Part Time
A125: Yes, but I need more information | B125: Science | C125: Part Time
A126: No | B126: Science | C126: Full Time
A127: Yes, but I need more information | B127: Science | C127: One Year Contract
A128: Yes, but I need more information | B128: Buisness | C128: Part Time
A129: Yes | B129: Science | C129: Part Time
A130: Yes | B130: Buisness | C130: Full Time
A131: Not Sure | B131: Buisness | C131: Part Time
A132: Yes, but I need more information | B132: Science | C132: Part Time
A133: Yes, but I need more information | B133: Buisness | C133: Full Time
A134: Yes, but I need more information | B134: Buisness | C134: Part Time
A135: Yes | B135: Humanities | C135: Full Time
A136: Yes, but I need more information | B136: Buisness | C136: Full Time
A137: Yes, but I need more information | B137: Humanities | C137: Full Time
A138: Yes | B138: Humanities | C138: Full Time
A139: Yes | B139: Humanities | C139: Full Time
A140: Yes, but I need more information | B140: Humanities | C140: Part Time
A141: Yes | B141: Science | C141: Part Time
A142: Yes, but I need more information | B142: Humanities | C142: Part Time
A143: Yes, but I need more information | B143: Buisness | C143: Full Time
A144: Not Sure | B144: Humanities | C144: Full Time
A145: Yes | B145: Buisness | C145: Full Time
A146: Yes, but I need more information | B146: Humanities | C146: Full Time
A147: Yes, but I need more information | B147: Buisness | C147: Full Time
A148: Not Sure | B148: Buisness | C148: Full Time
A149: Yes, but I need more information | B149: Buisness | C149: Part Time
A150: No | B150: Buisness | C150: One Year Contract
A151: Yes | B151: Science | C151: Full Time
A152: Yes, but I need more information | B152: Science | C152: Full Time
A153: Yes | B153: Humanities | C153: One Year Contract
A154: Yes | B154: Buisness | C154: One Year Contract
A155: Yes, but I need more information | B155: Humanities | C155: Part Time
A156: Yes | B156: Buisness | C156: Part Time
A157: Not Sure | B157: Humanities | C157: One Year Contract
A158: Yes, but I need more information | B158: Science | C158: Full Time
A159: Yes, but I need more information | B159: Buisness | C159: Full Time
A160: Yes | B160: Buisness | C160: Part Time
A161: Yes, but I need more information | B161: Buisness | C161: Part Time
A162: Yes | B162: Science | C162: Full Time
A163: No | B163: Science | C163: Part Time
A164: Yes, but I need more information | B164: Science | C164: Full Time
A165: Not Sure | B165: Buisness | C165: Full Time
A166: Yes | B166: Humanities | C166: Part Time
A167: Yes, but I need more information | B167: Humanities | C167: One Year Contract
A168: Yes, but I need more information | B168: Science | C168: One Year Contract
A169: Yes, but I need more information | B169: Buisness | C169: Full Time
A170: Yes, but I need more information | B170: Buisness | C170: Full Time
A171: Not Sure | B171: Science | C171: Full Time
A172: Yes, but I need more information | B172: Science | C172: Part Time
A173: Not Sure | B173: Humanities | C173: Part Time
A174: Yes, but I need more information | B174: Humanities | C174: Part Time
A175: Yes | B175: Humanities | C175: One Year Contract
A176: Yes, but I need more information | B176: Humanities | C176: One Year Contract
A177: Yes, but I need more information | B177: Buisness | C177: Full Time
A178: Not Sure | B178: Science | C178: Part Time
A179: Yes, but I need more information | B179: Buisness | C179: Full Time
A180: Yes, but I need more information | B180: Humanities | C180: Full Time
A181: Yes, but I need more information | B181: Humanities | C181: Full Time
A182: Yes, but I need more information | B182: Science | C182: Full Time
A183: Yes | B183: Buisness | C183: Full Time
A184: Not Sure | B184: Humanities | C184: Full Time
A185: No | B185: Buisness | C185: Part Time
A186: Not Sure | B186: Buisness | C186: One Year Contract
A187: Not Sure | B187: Buisness | C187: Full Time
A188: Yes | B188: Science | C188: Part Time
A189: Yes | B189: Buisness | C189: Part Time
A190: Yes, but I need more information | B190: Humanities | C190: Part Time
A191: Yes, but I need more information | B191: Buisness | C191: Part Time
A192: Yes | B192: Science | C192: One Year Contract
A193: Yes, but I need more information | B193: Science | C193: Full Time
A194: Yes, but I need more information | B194: Humanities | C194: Full Time
A195: Not Sure | B195: Buisness | C195: Full Time
A196: Not Sure | B196: Buisness | C196: Full Time
A197: No | B197: Buisness | C197: Full Time
A198: Yes, but I need more information | B198: Science | C198: Full Time
A199: No | B199: Buisness | C199: Full Time
A200: Yes, but I need more information | B200: Buisness | C200: Part Time
... 15 more rows

Sheet BMX Data
A1: For Entry Level BMX Race Bikes, Is there a relationship between Price and Weight of Bike?
A4: Year Manufacturer and Model | B4: Price | C4: Bike Weight (pound)
A5: 2015 SE Ripper | B5: 299 | C5: 22.4
A6: 2014 Redline MX 20 | B6: 462 | C6: 21
A7: 2015 SE PK Ripper Elite | B7: 549 | C7: 21
A8: 2015 Grenade Launch Pro X | B8: 180 | C8: 26
A9: 2015 SE PK Ripper Elite XL | B9: 549 | C9: 21.1
A10: 2015 Grenade M1 | B10: 240 | C10: 26
A11: 2015 Framed Team | B11: 180 | C11: 26.4
A12: 2014 Redline MX 20 | B12: 431 | C12: 21
A13: 2014 Framed Team | B13: 360 | C13: 25.2
A14: 2014 Grenade MX | B14: 230 | C14: 26
A15: 2014 Grenade Stealth Deep Sea Blue | B15: 270 | C15: 25
A16: 2014 Grenade Flare X | B16: 150 | C16: 26.8
A17: 2014 Grenade Launch Blue | B17: 170 | C17: 25.2
A18: 2014 Grenade Launch X | B18: 160 | C18: 27
A19: 2014 Framed Verdict Blank | B19: 159 | C19: 25.4
A20: 2014 SE PK Ripper Elite | B20: 500 | C20: 20.7
A21: 2013 Redline Proline Pro | B21: 560 | C21: 21.9
A22: 2012 Redline Proline Pro XL | B22: 560 | C22: 22.5
A23: 2013 Redline Proline Expert XL | B23: 499 | C23: 20.1
A24: 2013 Redline MX 20 | B24: 379 | C24: 23
